[Event "Summer Prague Open-A 2024"]
[Site "Prague"]
[Date "2024.08.03"]
[Round "2.9"]
[White "Kaderabek, Jiri"]
[Black "Eret, Matous"]
[Result "0-1"]
[Annotator "ChessBase"]
[ECO "B40"]
[WhiteElo "2000"]
[BlackElo "2316"]
[PlyCount "86"]
[EventDate "2024.08.02"]
[EventType "swiss"]
[EventCountry "CZE"]
[SourceTitle "playchess.com"]
[Source "ChessBase"]
[SourceQuality "1"]
[TimeControl "40/5400+30:1800+30"]

1. e4 {[%emt 0:00:04]} c5 {[%emt 0:00:06]} 2. Nf3 {[%emt 0:00:04]} e6 {[%emt 0:00:05]} 3. b3 {[%emt 0:00:04]} a6 {[%emt 0:00:15]} 4. Bb2 {[%emt 0:00:43]} Qc7 {[%emt 0:00:20]} 5. g3 {[%emt 0:00:33]} Nc6 {[%emt 0:01:23]} 6. Bg2 {[%emt 0:00:53]} Nf6 {[%emt 0:05:48]} 7. Qe2 {[%emt 0:04:51]} Be7 {[%emt 0:05:28]} 8. O-O {[%emt 0:05:49]} O-O {[%emt 0:01:41]} 9. e5 {[%emt 0:09:20]} Ng4 {[%emt 0:03:38]} 10. h3 {[%emt 0:04:20]} Nh6 {[%emt 0:00:03]} 11. Na3 {[%emt 0:07:29]} b5 {[%emt 0:06:31]} 12. c4 {[%emt 0:01:57]} b4 {[%emt 0:01:29]} 13. Nc2 {[%emt 0:00:07]} Bb7 {[%emt 0:00:28]} 14. d4 {[%emt 0:02:24]} cxd4 {[%emt 0:00:13]} 15. Ncxd4 {[%emt 0:05:19]} f6 {[%emt 0:14:04]} 16. Nxc6 {[%emt 0:06:19]} Bxc6 {[%emt 0:00:30]} 17. Rad1 {[%emt 0:01:07]} Qb7 {[%emt 0:04:01]} 18. Nh4 {[%emt 0:00:12]} fxe5 {[%emt 0:02:04]} 19. Bxc6 {[%emt 0:00:26]} Qxc6 {[%emt 0:00:04]} 20. Ng2 {[%emt 0:03:43]} d6 {[%emt 0:13:57]} 21. f4 {[%emt 0:01:44]} e4 {[%emt 0:01:38]} 22. Kh2 {[%emt 0:02:15]} Rad8 {[%emt 0:03:48]} 23. Rc1 {[%emt 0:02:54]} Qb7 {[%emt 0:03:31]} 24. c5 {[%emt 0:03:12]} d5 {[%emt 0:03:02]} 25. Be5 {[%emt 0:03:48]} Rc8 {[%emt 0:02:41]} 26. Rc2 {[%emt 0:08:15]} Bxc5 {[%emt 0:02:11]} 27. Rfc1 {[%emt 0:00:18]} Bb6 {[%emt 0:00:41]} 28. Qh5 {[%emt 0:00:36]} Rxc2 {[%emt 0:08:37]} 29. Rxc2 {[%emt 0:00:09]} Nf5 {[%emt 0:04:22]} 30. Nh4 {[%emt 0:03:11]} d4 {[%emt 0:02:36]} 31. Nxf5 {[%emt 0:07:03]} exf5 {[%emt 0:00:05]} 32. g4 {[%emt 0:00:51]} fxg4 {[%emt 0:02:48]} 33. Rg2 {[%emt 0:00:35]} Qf7 {[%emt 0:01:36]} 34. Rxg4 {[%emt 0:00:53]} g6 {[%emt 0:00:25]} 35. Qh6 {[%emt 0:00:24]} Bc7 {[%emt 0:00:49]} 36. Qg5 {[%emt 0:02:00]} Bd8 {[%emt 0:01:07]} 37. Qh6 {[%emt 0:00:17]} Bf6 {[%emt 0:00:33]} 38. Bd6 {[%emt 0:00:08]} Rd8 {[%emt 0:00:18]} 39. f5 {[%emt 0:01:35]} Rxd6 {[%emt 0:00:25]} 40. Qf4 {[%emt 0:00:23]} Rd8 {[%emt 0:03:03]} 41. fxg6 {[%emt 0:30:59]} hxg6 {[%emt 0:30:08]} 42. Qxe4 {[%emt 0:02:14]} Kg7 {[%emt 0:00:54]} 43. h4 {[%emt 0:00:27]} Re8 {[%emt 0:01:04]} 0-1

[Event "Summer Prague Open-A 2024"]
[Site "Prague"]
[Date "2024.08.03"]
[Round "2.10"]
[White "Mirimanian, Hayk"]
[Black "Holliman, Bob"]
[Result "1-0"]
[Annotator "ChessBase"]
[ECO "C10"]
[WhiteElo "2290"]
[BlackElo "1990"]
[PlyCount "67"]
[EventDate "2024.08.02"]
[EventType "swiss"]
[EventCountry "CZE"]
[SourceTitle "playchess.com"]
[Source "ChessBase"]
[SourceQuality "1"]
[TimeControl "40/5400+30:1800+30"]

1. e4 {[%emt 0:00:12]} e6 {[%emt 0:00:13]} 2. d4 {[%emt 0:00:09]} d5 {[%emt 0:00:08]} 3. Nd2 {[%emt 0:00:11]} dxe4 {[%emt 0:00:30]} 4. Nxe4 {[%emt 0:00:19]} Nd7 {[%emt 0:00:03]} 5. Bd3 {[%emt 0:00:27]} Ngf6 {[%emt 0:00:14]} 6. Qe2 {[%emt 0:00:12]} c5 {[%emt 0:00:59]} 7. Nxc5 {[%emt 0:09:49]} Nxc5 {[%emt 0:02:21]} 8. dxc5 {[%emt 0:00:07]} Bxc5 {[%emt 0:00:10]} 9. Nf3 {[%emt 0:00:13]} Qc7 {[%emt 0:06:07]} 10. O-O {[%emt 0:03:13]} Bd7 {[%emt 0:09:53]} 11. Bd2 {[%emt 0:05:30]} O-O {[%emt 0:09:27]} 12. b4 {[%emt 0:03:22]} Be7 {[%emt 0:02:49]} 13. c4 {[%emt 0:01:33]} Rfd8 {[%emt 0:07:20]} 14. Rac1 {[%emt 0:06:52]} Bc6 {[%emt 0:07:33]} 15. Ne5 {[%emt 0:13:17]} h6 {[%emt 0:13:14]} 16. Rfe1 {[%emt 0:12:58]} b6 {[%emt 0:04:42]} 17. Bc3 {[%emt 0:07:24]} Bb7 {[%emt 0:02:09]} 18. Bb1 {[%emt 0:08:48]} Rac8 {[%emt 0:03:44]} 19. Qc2 {[%emt 0:04:03]} Ba8 {[%emt 0:02:42]} 20. Re3 {[%emt 0:05:40]} Qb7 {[%emt 0:06:30]} 21. Rg3 {[%emt 0:00:29]} Qe4 {[%emt 0:03:48]} 22. Qb2 {[%emt 0:00:51]} Qf4 {[%emt 0:00:48]} 23. Re1 {[%emt 0:06:36]} Kf8 {[%emt 0:05:36]} 24. Bg6 {[%emt 0:02:13]} Rxc4 {[%emt 0:08:33]} 25. Bxf7 {[%emt 0:00:43]} Rxb4 {[%emt 0:00:28]} 26. Qa1 {[%emt 0:02:38]} Be4 {[%emt 0:00:45]} 27. Bxe6 {[%emt 0:01:17]} Rd2 {[%emt 0:01:28]} 28. Bxd2 {[%emt 0:01:48]} Qxd2 {[%emt 0:00:07]} 29. Qc3 {[%emt 0:01:11]} Qxc3 {[%emt 0:00:23]} 30. Rxc3 {[%emt 0:00:01]} Bc5 {[%emt 0:00:04]} 31. Bb3 {[%emt 0:01:03]} Rd4 {[%emt 0:01:19]} 32. Rc4 Rd2 33. Rcxe4 Rxf2 34. Nd7+ 1-0

[Event "Summer Prague Open-A 2024"]
[Site "Prague"]
[Date "2024.08.03"]
[Round "2.11"]
[White "Olsen, Aage Dalstrup"]
[Black "Walek, Petr"]
[Result "0-1"]
[Annotator "ChessBase"]
[ECO "B13"]
[WhiteElo "1987"]
[BlackElo "2283"]
[PlyCount "42"]
[EventDate "2024.08.02"]
[EventType "swiss"]
[EventCountry "CZE"]
[SourceTitle "playchess.com"]
[Source "ChessBase"]
[SourceQuality "1"]
[TimeControl "40/5400+30:1800+30"]

1. e4 {[%emt 0:00:04]} c6 {[%emt 0:00:03]} 2. d4 {[%emt 0:00:08]} d5 {[%emt 0:00:04]} 3. exd5 {[%emt 0:00:14]} cxd5 {[%emt 0:00:05]} 4. Nf3 {[%emt 0:00:11]} Nf6 {[%emt 0:00:36]} 5. c4 {[%emt 0:00:15]} g6 {[%emt 0:00:10]} 6. Nc3 {[%emt 0:00:07]} Bg7 {[%emt 0:00:11]} 7. h3 {[%emt 0:01:49]} O-O {[%emt 0:01:13]} 8. Be3 {[%emt 0:05:17]} Nc6 {[%emt 0:02:17]} 9. Rc1 {[%emt 0:01:10]} Be6 {[%emt 0:13:48]} 10. c5 {[%emt 0:03:10]} Ne4 {[%emt 0:01:33]} 11. Bb5 {[%emt 0:04:56]} Qc7 {[%emt 0:16:43]} 12. O-O {[%emt 0:03:33]} h6 {[%emt 0:12:40]} 13. Qa4 {[%emt 0:08:23]} f5 {[%emt 0:06:48]} 14. Nxe4 {[%emt 0:02:28]} dxe4 {[%emt 0:02:33]} 15. Bxc6 {[%emt 0:04:14]} bxc6 {[%emt 0:10:07]} 16. Ne5 {[%emt 0:05:10]} f4 {[%emt 0:00:05]} 17. Bd2 {[%emt 0:01:41]} Bxe5 {[%emt 0:02:04]} 18. dxe5 {[%emt 0:00:11]} Bd5 {[%emt 0:00:50]} 19. Bc3 {[%emt 0:00:26]} Qd7 {[%emt 0:04:39]} 20. Rcd1 {[%emt 0:02:02]} Qe6 {[%emt 0:02:06]} 21. b3 {[%emt 0:00:28]} f3 {[%emt 0:06:31]} 0-1

[Event "Summer Prague Open-A 2024"]
[Site "Prague"]
[Date "2024.08.03"]
[Round "2.12"]
[White "Camarena Jimenez, Rufino"]
[Black "Holub, Adam"]
[Result "1-0"]
[Annotator "ChessBase"]
[ECO "D31"]
[WhiteElo "2279"]
[BlackElo "1980"]
[PlyCount "65"]
[EventDate "2024.08.02"]
[EventType "swiss"]
[EventCountry "CZE"]
[SourceTitle "playchess.com"]
[Source "ChessBase"]
[SourceQuality "1"]
[TimeControl "40/5400+30:1800+30"]

1. d4 {[%emt 0:10:42]} d5 {[%emt 0:00:56]} 2. c4 {[%emt 0:00:16]} e6 {[%emt 0:00:08]} 3. Nc3 {[%emt 0:00:28]} a6 {[%emt 0:00:11]} 4. e3 {[%emt 0:00:47]} Nf6 {[%emt 0:00:39]} 5. Nf3 {[%emt 0:00:18]} Be7 {[%emt 0:00:49]} 6. a3 {[%emt 0:04:20]} O-O {[%emt 0:03:59]} 7. b4 {[%emt 0:01:29]} a5 {[%emt 0:18:21]} 8. b5 {[%emt 0:02:41]} c5 {[%emt 0:02:29]} 9. bxc6 {[%emt 0:03:02]} Nxc6 {[%emt 0:05:12]} 10. Bb2 {[%emt 0:11:51]} h6 {[%emt 0:05:03]} 11. Bd3 {[%emt 0:02:50]} Re8 {[%emt 0:13:21]} 12. O-O {[%emt 0:03:52]} Bf8 {[%emt 0:01:14]} 13. Rc1 {[%emt 0:15:53]} Rb8 {[%emt 0:25:00]} 14. Qe2 {[%emt 0:04:30]} Bd7 {[%emt 0:04:23]} 15. Rfd1 {[%emt 0:00:47]} dxc4 {[%emt 0:01:49]} 16. Bxc4 {[%emt 0:00:16]} Na7 {[%emt 0:00:40]} 17. a4 {[%emt 0:11:04]} Bxa4 {[%emt 0:05:05]} 18. Nxa4 {[%emt 0:00:22]} b5 {[%emt 0:00:14]} 19. Bb3 {[%emt 0:00:25]} bxa4 {[%emt 0:00:23]} 20. Bxa4 {[%emt 0:00:03]} Re7 {[%emt 0:01:02]} 21. Ba1 {[%emt 0:06:42]} Rc7 {[%emt 0:01:28]} 22. Rxc7 {[%emt 0:02:41]} Qxc7 {[%emt 0:00:03]} 23. e4 {[%emt 0:00:13]} Nc8 {[%emt 0:01:49]} 24. d5 {[%emt 0:02:10]} Nb6 {[%emt 0:02:52]} 25. Bc2 {[%emt 0:03:32]} Rc8 {[%emt 0:03:11]} 26. Bd3 {[%emt 0:01:13]} Na4 {[%emt 0:02:03]} 27. d6 {[%emt 0:02:22]} Qd8 {[%emt 0:00:47]} 28. e5 {[%emt 0:00:20]} Nc3 {[%emt 0:00:47]} 29. Bxc3 {[%emt 0:00:34]} Rxc3 {[%emt 0:00:28]} 30. exf6 {[%emt 0:00:11]} Bxd6 {[%emt 0:00:29]} 31. fxg7 {[%emt 0:00:44]} a4 {[%emt 0:00:33]} 32. Qe4 {[%emt 0:00:41]} Kxg7 {[%emt 0:00:26]} 33. Qd4+ {[%emt 0:01:10]} 1-0

[Event "Summer Prague Open-A 2024"]
[Site "Prague"]
[Date "2024.08.03"]
[Round "2.13"]
[White "Cichon, Jakub"]
[Black "Neukirchner, Pascal"]
[Result "0-1"]
[Annotator "RC"]
[ECO "A57"]
[WhiteElo "1979"]
[BlackElo "2261"]
[PlyCount "84"]
[EventDate "2024.08.02"]
[EventType "swiss"]
[EventCountry "CZE"]
[SourceTitle "playchess.com"]
[Source "ChessBase"]
[SourceQuality "1"]
[TimeControl "40/5400+30:1800+30"]

1. d4 {[%emt 0:02:23]} Nf6 {[%emt 0:00:06]} 2. c4 {[%emt 0:00:07]} c5 {[%emt 0:00:05]} 3. d5 {[%emt 0:00:25]} b5 {[%emt 0:00:10]} 4. cxb5 {[%emt 0:00:18]} a6 {[%emt 0:00:05]} 5. e3 {[%emt 0:00:54]} e6 {[%emt 0:01:18]} 6. dxe6 {[%emt 0:01:07]} fxe6 {[%emt 0:00:06]} 7. Nf3 {[%emt 0:01:21]} d5 {[%emt 0:01:04]} 8. bxa6 {[%emt 0:02:23]} Bd6 {[%emt 0:12:37]} 9. Bb5+ {[%emt 0:03:37]} Nbd7 {[%emt 0:03:37]} 10. Nc3 {[%emt 0:04:49]} O-O {[%emt 0:01:31]} 11. a4 {[%emt 0:07:25]} Bxa6 {[%emt 0:04:46]} 12. O-O {[%emt 0:10:04]} Bb7 {[%emt 0:12:07]} 13. Re1 {[%emt 0:03:10]} Ne5 {[%emt 0:27:28]} 14. Be2 {[%emt 0:17:35]} Nfg4 {[%emt 0:08:28]} 15. h3 {[%emt 0:16:52]} Nxf2 {[%emt 0:12:50]} 16. Kxf2 {[%emt 0:00:04]} Qh4+ {[%emt 0:00:07]} 17. Kg1 {[%emt 0:02:08]} Nxf3+ {[%emt 0:01:29]} 18. Bxf3 {[%emt 0:00:24]} Rxf3 {[%emt 0:00:28]} 19. gxf3 {[%emt 0:07:24]} Qg3+ {[%emt 0:00:05]} 20. Kf1 {[%emt 0:00:15]} Qxh3+ {[%emt 0:00:37]} 21. Kg1 {[%emt 0:07:24]} Qh2+ {[%emt 0:04:26]} 22. Kf1 {[%emt 0:00:05]} Qh1+ {[%emt 0:00:05]} 23. Kf2 {[%emt 0:03:20]} Qh2+ {[%emt 0:00:03]} 24. Kf1 {[%emt 0:00:05]} Ba6+ {[%emt 0:00:06]} 25. Nb5 {[%emt 0:01:17]} Bxb5+ {[%emt 0:03:01]} 26. axb5 {[%emt 0:00:07]} Rxa1 {[%emt 0:00:05]} 27. Qd2 {[%emt 0:00:33]} Qh1+ {[%emt 0:00:47]} 28. Kf2 {[%emt 0:00:15]} Qh2+ {[%emt 0:00:38]} 29. Kf1 {[%emt 0:00:04]} Qh1+ {[%emt 0:00:02]} 30. Kf2 {[%emt 0:00:23]} Qh4+ {[%emt 0:00:02]} 31. Ke2 {[%emt 0:00:39]} Qc4+ {[%emt 0:00:07]} 32. Kf2 {[%emt 0:01:17]} Qxb5 {[%emt 0:00:21]} 33. Rh1 {[%emt 0:01:42]} Qc4 {[%emt 0:00:59]} 34. e4 {[%emt 0:02:02]} d4 {[%emt 0:03:38]} 35. Rg1 {[%emt 0:02:10]} Ra7 {[%emt 0:03:22]} 36. Kg2 {[%emt 0:01:46]} Rf7 {[%emt 0:00:16]} 37. Qd1 {[%emt 0:02:35]} Rf6 {[%emt 0:00:57]} 38. Kh1 {[%emt 0:00:15]} Bf4 {[%emt 0:00:40]} 39. Bxf4 {[%emt 0:00:41]} Rxf4 {[%emt 0:00:02]} 40. Qd2 {[%emt 0:00:25]} e5 {[%emt 0:00:51]} 41. Qa5 {[%emt 0:01:26]} Rh4+ {[%emt 0:04:35]} 42. Kg2 {[%emt 0:00:09]} Qe2+ {[%emt 0:00:04]} 0-1

[Event "Summer Prague Open-A 2024"]
[Site "Prague"]
[Date "2024.08.03"]
[Round "2.14"]
[White "Veleshnja, Zino"]
[Black "Halafov, Ilgar"]
[Result "1-0"]
[Annotator "RC"]
[ECO "A43"]
[WhiteElo "2252"]
[BlackElo "1975"]
[PlyCount "91"]
[EventDate "2024.08.02"]
[EventType "swiss"]
[EventCountry "CZE"]
[SourceTitle "playchess.com"]
[Source "ChessBase"]
[SourceQuality "1"]
[TimeControl "40/5400+30:1800+30"]

1. d4 {[%emt 0:10:45]} c5 {[%emt 0:00:17]} 2. d5 {[%emt 0:01:01]} d6 {[%emt 0:01:14]} 3. c4 {[%emt 0:03:37]} Nf6 {[%emt 0:00:13]} 4. Nc3 {[%emt 0:00:12]} g6 {[%emt 0:00:09]} 5. g3 {[%emt 0:00:19]} Bg7 {[%emt 0:00:14]} 6. Bg2 {[%emt 0:00:07]} O-O {[%emt 0:00:10]} 7. Nf3 {[%emt 0:00:15]} e5 {[%emt 0:03:44]} 8. O-O {[%emt 0:01:48]} Ne8 {[%emt 0:06:30]} 9. Bg5 {[%emt 0:06:22]} f6 {[%emt 0:01:28]} 10. Bd2 {[%emt 0:00:10]} Bg4 {[%emt 0:08:52]} 11. Nh4 {[%emt 0:08:01]} g5 {[%emt 0:21:54]} 12. Nf3 {[%emt 0:00:12]} Nd7 {[%emt 0:03:26]} 13. h3 {[%emt 0:02:01]} Bh5 {[%emt 0:01:04]} 14. g4 {[%emt 0:02:49]} Bg6 {[%emt 0:02:02]} 15. e4 {[%emt 0:05:32]} h5 16. Qb3 Qc8 {[%emt 0:01:05]} 17. gxh5 {[%emt 0:01:35]} Bxh5 {[%emt 0:00:13]} 18. Nh2 {[%emt 0:00:26]} Rf7 {[%emt 0:01:41]} 19. f3 {[%emt 0:07:23]} Nf8 {[%emt 0:01:10]} 20. Ne2 {[%emt 0:00:10]} Rb8 {[%emt 0:05:22]} 21. Ng3 {[%emt 0:01:03]} Bg6 {[%emt 0:00:09]} 22. a4 {[%emt 0:04:06]} Nh7 {[%emt 0:00:22]} 23. Qd3 {[%emt 0:03:48]} Bf8 {[%emt 0:01:11]} 24. Ng4 {[%emt 0:00:33]} b6 {[%emt 0:01:07]} 25. Kf2 {[%emt 0:07:24]} a6 {[%emt 0:00:33]} 26. Ne3 {[%emt 0:09:20]} Ng7 {[%emt 0:02:37]} 27. Rh1 {[%emt 0:02:30]} b5 {[%emt 0:16:56]} 28. axb5 {[%emt 0:00:43]} axb5 {[%emt 0:00:06]} 29. cxb5 {[%emt 0:02:46]} Rfb7 {[%emt 0:00:25]} 30. h4 {[%emt 0:03:30]} gxh4 {[%emt 0:08:31]} 31. Rxh4 {[%emt 0:00:24]} Rxb5 {[%emt 0:01:41]} 32. Rh6 {[%emt 0:05:14]} Qe8 {[%emt 0:02:48]} 33. Ng4 {[%emt 0:02:41]} Rxb2 {[%emt 0:04:41]} 34. Rxh7 {[%emt 0:02:14]} Qd8 {[%emt 0:00:15]} 35. Qe3 {[%emt 0:03:22]} Kxh7 {[%emt 0:03:01]} 36. Rh1+ {[%emt 0:00:27]} Nh5 {[%emt 0:01:20]} 37. Nxh5 {[%emt 0:00:34]} Bxh5 {[%emt 0:00:50]} 38. Rxh5+ {[%emt 0:00:08]} Kg8 {[%emt 0:00:18]} 39. Nh6+ {[%emt 0:01:19]} Bxh6 {[%emt 0:00:16]} 40. Qxh6 {[%emt 0:00:23]} Rxd2+ {[%emt 0:01:36]} 41. Qxd2 {[%emt 0:30:18]} Qf8 {[%emt 0:05:13]} 42. Rh4 {[%emt 0:00:00]} Kf7 {[%emt 0:03:03]} 43. Bh3 {[%emt 0:00:00]} Qg7 {[%emt 0:00:44]} 44. Be6+ {[%emt 0:00:00]} Ke7 {[%emt 0:00:28]} 45. Qa2 {[%emt 0:00:00]} Rb7 {[%emt 0:00:46]} 46. Bf5 {[%emt 0:00:00]} 1-0

[Event "Summer Prague Open-A 2024"]
[Site "Prague"]
[Date "2024.08.03"]
[Round "2.15"]
[White "Green, Michael L"]
[Black "Petr, Jakub"]
[Result "0-1"]
[Annotator "RC"]
[ECO "D02"]
[WhiteElo "1997"]
[BlackElo "2243"]
[PlyCount "84"]
[EventDate "2024.08.02"]
[EventType "swiss"]
[EventCountry "CZE"]
[SourceTitle "playchess.com"]
[Source "ChessBase"]
[SourceQuality "1"]
[TimeControl "40/5400+30:1800+30"]

1. c3 {[%emt 0:00:08]} d5 {[%emt 0:01:14]} 2. d4 {[%emt 0:02:10]} Nf6 {[%emt 0:00:16]} 3. Bf4 {[%emt 0:00:12]} e6 {[%emt 0:01:01]} 4. e3 {[%emt 0:01:07]} Bd6 {[%emt 0:00:09]} 5. Bg3 {[%emt 0:00:47]} c5 {[%emt 0:00:26]} 6. Nd2 {[%emt 0:00:55]} O-O {[%emt 0:00:47]} 7. Ngf3 {[%emt 0:00:56]} Nc6 {[%emt 0:00:14]} 8. Be2 {[%emt 0:00:18]} b6 {[%emt 0:00:53]} 9. O-O {[%emt 0:04:01]} Bxg3 {[%emt 0:04:41]} 10. hxg3 {[%emt 0:00:08]} Qd6 {[%emt 0:00:12]} 11. Rc1 {[%emt 0:02:40]} Bb7 {[%emt 0:07:21]} 12. Qc2 {[%emt 0:02:54]} e5 {[%emt 0:06:10]} 13. dxe5 {[%emt 0:00:36]} Nxe5 {[%emt 0:00:06]} 14. Nxe5 {[%emt 0:05:04]} Qxe5 {[%emt 0:04:06]} 15. c4 {[%emt 0:00:14]} Rad8 {[%emt 0:04:08]} 16. cxd5 {[%emt 0:02:52]} Bxd5 {[%emt 0:00:41]} 17. Bc4 {[%emt 0:03:09]} Bxc4 {[%emt 0:01:42]} 18. Nxc4 {[%emt 0:00:18]} Qh5 {[%emt 0:00:06]} 19. f3 {[%emt 0:03:13]} Nd5 {[%emt 0:01:15]} 20. e4 {[%emt 0:08:59]} Nb4 {[%emt 0:01:01]} 21. Qe2 {[%emt 0:01:27]} Qg5 {[%emt 0:12:33]} 22. a3 {[%emt 0:02:23]} Nc6 {[%emt 0:02:20]} 23. g4 {[%emt 0:01:38]} Nd4 {[%emt 0:11:48]} 24. Qf2 {[%emt 0:00:57]} h5 {[%emt 0:00:08]} 25. gxh5 {[%emt 0:03:22]} Ne6 {[%emt 0:01:36]} 26. f4 {[%emt 0:02:08]} Qxh5 {[%emt 0:00:32]} 27. Ne3 {[%emt 0:03:10]} Nd4 {[%emt 0:05:46]} 28. g4 {[%emt 0:02:35]} Qg6 {[%emt 0:02:55]} 29. e5 {[%emt 0:06:19]} Rfe8 {[%emt 0:04:19]} 30. Rce1 {[%emt 0:03:26]} Nb3 {[%emt 0:05:39]} 31. Qg2 {[%emt 0:02:32]} Rd2 {[%emt 0:09:07]} 32. Rf2 {[%emt 0:03:53]} Rxf2 {[%emt 0:00:55]} 33. Qxf2 {[%emt 0:02:27]} Rd8 {[%emt 0:00:10]} 34. Qg2 {[%emt 0:03:35]} Qd3 {[%emt 0:00:30]} 35. Nf5 {[%emt 0:04:33]} Nd2 {[%emt 0:04:31]} 36. Kh1 {[%emt 0:10:22]} g6 {[%emt 0:01:22]} 37. e6 {[%emt 0:03:13]} fxe6 {[%emt 0:03:05]} 38. Rxe6 {[%emt 0:01:01]} Qb1+ {[%emt 0:02:12]} 39. Kh2 {[%emt 0:00:05]} Qxb2 {[%emt 0:00:28]} 40. Rxg6+ {[%emt 0:02:04]} Kf8 {[%emt 0:00:05]} 41. Kh3 {[%emt 0:10:32]} Rd3+ {[%emt 0:00:49]} 42. Qg3 {[%emt 0:09:39]} Rxg3+ {[%emt 0:00:28]} 0-1

[Event "Summer Prague Open-A 2024"]
[Site "Prague"]
[Date "2024.08.03"]
[Round "2.16"]
[White "Sramek, Vojtech"]
[Black "Heron, Andrew"]
[Result "1-0"]
[Annotator "ChessBase"]
[ECO "B90"]
[WhiteElo "2237"]
[BlackElo "1973"]
[PlyCount "71"]
[EventDate "2024.08.02"]
[EventType "swiss"]
[EventCountry "CZE"]
[SourceTitle "playchess.com"]
[Source "ChessBase"]
[SourceQuality "1"]
[TimeControl "40/5400+30:1800+30"]

1. e4 {[%emt 0:00:05]} c5 {[%emt 0:00:24]} 2. Nf3 {[%emt 0:00:07]} d6 {[%emt 0:00:07]} 3. d4 {[%emt 0:00:08]} cxd4 {[%emt 0:00:07]} 4. Nxd4 {[%emt 0:00:07]} Nf6 {[%emt 0:00:48]} 5. Nc3 {[%emt 0:00:08]} a6 {[%emt 0:00:07]} 6. Be3 {[%emt 0:00:18]} e5 {[%emt 0:00:25]} 7. Nb3 {[%emt 0:00:09]} Be7 {[%emt 0:00:14]} 8. f3 {[%emt 0:00:08]} Be6 {[%emt 0:00:59]} 9. Qd2 {[%emt 0:00:20]} h5 {[%emt 0:00:40]} 10. Nd5 {[%emt 0:01:17]} Nxd5 {[%emt 0:02:50]} 11. exd5 {[%emt 0:00:06]} Bf5 {[%emt 0:00:35]} 12. Be2 {[%emt 0:00:47]} Nd7 {[%emt 0:01:35]} 13. O-O {[%emt 0:00:52]} Rc8 {[%emt 0:06:13]} 14. c4 {[%emt 0:02:01]} O-O {[%emt 0:15:16]} 15. Na5 {[%emt 0:03:14]} Qc7 {[%emt 0:10:10]} 16. b4 {[%emt 0:03:44]} b6 {[%emt 0:01:11]} 17. Nc6 {[%emt 0:06:51]} Bf6 {[%emt 0:00:29]} 18. Rac1 {[%emt 0:03:55]} h4 {[%emt 0:06:55]} 19. h3 {[%emt 0:28:52]} Rfe8 {[%emt 0:09:20]} 20. f4 {[%emt 0:03:02]} exf4 {[%emt 0:05:01]} 21. Bxf4 {[%emt 0:01:25]} g6 {[%emt 0:02:30]} 22. c5 {[%emt 0:10:49]} bxc5 {[%emt 0:07:11]} 23. bxc5 {[%emt 0:01:53]} Nxc5 {[%emt 0:08:52]} 24. Rxc5 {[%emt 0:04:01]} Qb6 {[%emt 0:00:14]} 25. Bxd6 {[%emt 0:01:20]} Be5 {[%emt 0:02:04]} 26. Bxe5 {[%emt 0:04:39]} Qxc5+ {[%emt 0:00:28]} 27. Bd4 {[%emt 0:00:05]} Qxd5 {[%emt 0:08:21]} 28. Qh6 {[%emt 0:01:14]} f6 {[%emt 0:00:43]} 29. Bxf6 {[%emt 0:00:54]} Kf7 {[%emt 0:00:22]} 30. Qg7+ {[%emt 0:01:03]} Ke6 {[%emt 0:00:02]} 31. Nd4+ {[%emt 0:03:05]} Kd6 {[%emt 0:00:10]} 32. Nxf5+ {[%emt 0:00:19]} gxf5 {[%emt 0:00:04]} 33. Rd1 {[%emt 0:03:30]} Rc1 {[%emt 0:00:07]} 34. Rxc1 {[%emt 0:00:38]} Rxe2 {[%emt 0:00:26]} 35. Qc7+ {[%emt 0:00:11]} Ke6 {[%emt 0:00:02]} 36. Qe7# 1-0

[Event "Summer Prague Open-A 2024"]
[Site "Prague"]
[Date "2024.08.03"]
[Round "2.17"]
[White "Chon, Yongjoon"]
[Black "Skypala, Ondrej"]
[Result "0-1"]
[Annotator "ChessBase"]
[ECO "C07"]
[WhiteElo "1975"]
[BlackElo "2230"]
[PlyCount "108"]
[EventDate "2024.08.02"]
[EventType "swiss"]
[EventCountry "CZE"]
[SourceTitle "playchess.com"]
[Source "ChessBase"]
[SourceQuality "1"]
[TimeControl "40/5400+30:1800+30"]

1. e4 {[%emt 0:00:05]} e6 {[%emt 0:00:06]} 2. d4 {[%emt 0:00:05]} d5 {[%emt 0:00:05]} 3. Nd2 {[%emt 0:00:19]} c5 {[%emt 0:00:34]} 4. Ngf3 {[%emt 0:00:28]} cxd4 {[%emt 0:00:36]} 5. Nxd4 {[%emt 0:00:27]} Nf6 {[%emt 0:00:50]} 6. exd5 {[%emt 0:00:33]} Qxd5 {[%emt 0:00:38]} 7. Nb5 {[%emt 0:01:33]} Na6 {[%emt 0:00:10]} 8. Nc3 {[%emt 0:01:21]} Qe5+ {[%emt 0:09:57]} 9. Be2 {[%emt 0:02:22]} Bb4 {[%emt 0:00:17]} 10. O-O {[%emt 0:03:27]} O-O {[%emt 0:00:39]} 11. Nf3 {[%emt 0:02:46]} Qa5 {[%emt 0:05:01]} 12. Bd2 {[%emt 0:03:27]} Rd8 {[%emt 0:04:03]} 13. a3 {[%emt 0:00:18]} Be7 {[%emt 0:00:39]} 14. Bc4 {[%emt 0:05:43]} Qh5 {[%emt 0:05:44]} 15. Qe1 {[%emt 0:05:01]} Nc7 {[%emt 0:04:23]} 16. Bf4 {[%emt 0:03:13]} Ncd5 {[%emt 0:00:31]} 17. Nxd5 {[%emt 0:00:30]} Nxd5 {[%emt 0:00:12]} 18. Bg3 {[%emt 0:00:24]} a6 {[%emt 0:06:24]} 19. Ne5 {[%emt 0:02:05]} f6 {[%emt 0:03:05]} 20. Nd3 {[%emt 0:01:38]} Qf5 {[%emt 0:12:47]} 21. Rd1 {[%emt 0:02:15]} b5 {[%emt 0:00:30]} 22. Bb3 {[%emt 0:10:05]} Bb7 {[%emt 0:02:04]} 23. Nf4 {[%emt 0:03:05]} Nxf4 {[%emt 0:00:19]} 24. Bxf4 {[%emt 0:00:09]} Bd5 {[%emt 0:00:42]} 25. Bxd5 {[%emt 0:01:41]} Rxd5 {[%emt 0:00:06]} 26. Rxd5 {[%emt 0:01:23]} Qxd5 {[%emt 0:00:14]} 27. Qd2 {[%emt 0:04:31]} Qxd2 {[%emt 0:02:23]} 28. Bxd2 {[%emt 0:00:05]} Rc8 {[%emt 0:00:06]} 29. Rc1 {[%emt 0:00:57]} f5 {[%emt 0:01:01]} 30. Bc3 {[%emt 0:02:09]} Bxa3 {[%emt 0:00:10]} 31. Ra1 {[%emt 0:07:10]} Bf8 {[%emt 0:00:52]} 32. Rxa6 {[%emt 0:00:36]} b4 {[%emt 0:00:09]} 33. Be5 {[%emt 0:00:34]} Rxc2 {[%emt 0:00:28]} 34. f4 {[%emt 0:00:46]} Bc5+ {[%emt 0:00:53]} 35. Kf1 {[%emt 0:00:31]} Rf2+ {[%emt 0:00:16]} 36. Ke1 {[%emt 0:00:21]} Rxg2 {[%emt 0:00:27]} 37. Rc6 {[%emt 0:00:47]} Bf8 {[%emt 0:01:05]} 38. Rc8 {[%emt 0:00:45]} Kf7 {[%emt 0:00:08]} 39. Rc7+ {[%emt 0:00:09]} Kg6 {[%emt 0:00:15]} 40. Rc6 {[%emt 0:03:14]} Rxh2 {[%emt 0:00:19]} 41. Rxe6+ {[%emt 0:30:04]} Kf7 {[%emt 0:30:24]} 42. Rb6 {[%emt 0:00:52]} h5 {[%emt 0:01:27]} 43. Rb7+ {[%emt 0:00:41]} Ke6 {[%emt 0:00:08]} 44. Rb8 {[%emt 0:00:41]} Bc5 {[%emt 0:00:10]} 45. Bxg7 {[%emt 0:01:20]} h4 {[%emt 0:00:39]} 46. Be5 {[%emt 0:01:39]} h3 {[%emt 0:00:42]} 47. Rh8 {[%emt 0:00:07]} Kd5 {[%emt 0:00:14]} 48. Rh5 {[%emt 0:01:05]} Ke4 {[%emt 0:00:06]} 49. Rh8 {[%emt 0:00:56]} Ke3 {[%emt 0:00:16]} 50. Kd1 {[%emt 0:00:06]} b3 {[%emt 0:00:05]} 51. Bc3 {[%emt 0:01:05]} Rh1+ {[%emt 0:00:21]} 52. Be1 {[%emt 0:00:04]} Bb4 {[%emt 0:00:18]} 53. Re8+ {[%emt 0:00:35]} Kxf4 {[%emt 0:00:28]} 54. Rb8 {[%emt 0:00:35]} Rxe1# {[%emt 0:00:08]} 0-1